bitfinex-derivatives/quotes_ETHF0:USTF0_20250210
["timestamp","ask_amount","ask_price","bid_price","bid_amount"]
[1739193722129,0.5989,2649.1,2648.6,5.22866672]
[1739193722328,0.5989,2649.1,2648.9,2.02086672]
[1739193724130,0.5989,2649.1,2648.8,40.8]
[1739193724531,0.5989,2649.1,2648.7,0.57675824]
[1739193725033,0.5989,2649.1,2648.7,0.00565824]
[1739193725723,0.5989,2649.1,2648.7,1.16085824]
[1739193726234,0.5989,2649.1,2648.8,0.5802]
[1739193727332,0.5989,2649.1,2648.9,2.02086672]
[1739193727535,0.5989,2649.1,2648.9,5.22866672]
[1739193727734,0.58775824,2649.3,2648.9,5.22866672]
[1739193727929,0.00565824,2649.3,2649.2,2.02086672]
[1739193729137,3.2078,2649.7,2649.2,11.22866672]
[1739193729333,3.2078,2649.7,2649.6,2.02086672]
[1739193730232,1.16545824,2649.9,2649.6,2.02086672]
[1739193731232,1.16545824,2649.9,2649.3,3.76596672]
[1739193731632,1.16545824,2649.9,2649.4,40.8]
[1739193732236,1.16545824,2649.9,2649.3,3.76596672]
[1739193732637,0.5688,2649.8,2649.3,3.18486672]
[1739193733742,1.16545824,2649.9,2649.6,2.02086672]
[1739193734936,1.16545824,2649.9,2649.3,1.164]
[1739193734937,1.16545824,2649.9,2649.3,3.18486672]
[1739193736537,1.16545824,2649.9,2649.3,2.61576672]
[1739193736741,4.12621298,2649.8,2649.3,2.61576672]
[1739193736939,3.2078,2649.7,2649.3,0.5949]
[1739193737145,0.5757,2649.6,2649.2,4.8928]
[1739193737542,0.5789,2649.5,2649.2,4.8928]
[1739193737839,0.6003,2649.4,2649.2,3.2078]
[1739193738635,3.8081,2649.4,2649.1,0.5812]
[1739193738834,4.09009516,2649.3,2648.8,40.8]
[1739193739040,3.2078,2649.1,2648.8,40.8]
[1739193740543,3.2078,2649.1,2648.8,41.4057]
[1739193741747,3.8081,2649.4,2648.8,42.0098]
[1739193742148,4.06402953,2649.3,2648.8,42.0098]
[1739193742345,0.6003,2649.4,2649.0,2.02086672]
[1739193742646,0.6003,2649.4,2649.1,0.5884]
[1739193742845,3.2078,2649.7,2649.3,2.02086672]
[1739193743053,3.2078,2649.7,2649.4,1.2003]
[1739193743351,0.612,2649.6,2649.4,1.2003]
[1739193743750,0.612,2649.6,2649.5,0.5884]
[1739193744451,3.2078,2649.7,2649.5,0.5884]
[1739193745346,0.5805,2649.8,2649.6,2.02086672]
[1739193746754,0.5805,2649.8,2649.5,0.5884]
[1739193747257,0.00565824,2649.9,2649.5,0.5884]
[1739193747754,0.00565824,2649.9,2649.6,2.02086672]
[1739193748245,0.00565824,2649.9,2649.8,3.2078]
[1739193748753,0.00565824,2649.9,2649.8,44.0078]
[1739193749549,3.2078,2650.5,2649.8,50.0078]
[1739193749747,3.2078,2650.5,2650.3,2.02086672]
[1739193750048,3.2078,2650.5,2650.4,0.6001]
[1739193750255,1.1969,2650.9,2650.4,4.3618]
[1739193750450,3.2078,2651.3,2650.8,2.02086672]
[1739193750651,3.2078,2651.3,2650.9,0.5675]
[1739193750853,4.14675924,2651.2,2650.9,0.5675]
[1739193753058,3.2078,2651.0,2650.5,2.59716672]
[1739193753256,0.5946,2650.9,2650.5,2.58836672]
[1739193753558,5.36010891,2650.9,2650.5,2.58836672]
[1739193754357,5.36010891,2650.9,2650.5,0.5675]
[1739193754659,1.1885,2650.9,2650.4,0.55955824]
[1739193754851,4.31726959,2650.8,2650.4,0.55955824]
[1739193755155,3.2078,2650.7,2650.4,0.00565824]
[1739193757255,1.1885,2650.9,2650.4,0.00565824]
[1739193757753,3.2078,2650.7,2650.4,0.00565824]
[1739193761965,1.1885,2650.9,2650.4,0.00565824]
[1739193763053,4.15235208,2650.8,2650.4,0.00565824]
[1739193764558,3.2078,2650.7,2650.4,0.00565824]
[1739193764759,0.5649,2650.6,2650.4,0.00565824]
[1739193765255,0.5614,2650.5,2650.4,0.00565824]
[1739193766162,10.6698221,2650.5,2650.4,0.00565824]
[1739193766460,2.02086672,2650.4,2649.8,44.0078]
[1739193766656,5.82496672,2650.4,2649.8,44.0078]
[1739193766856,4.3206459,2650.3,2649.8,44.0078]
[1739193767259,4.3206459,2650.3,2649.8,40.8]
[1739193767455,4.3206459,2650.3,2649.8,40.80565824]
[1739193767658,3.2078,2650.1,2649.8,40.80565824]
[1739193768060,1.1801,2650.0,2649.8,40.80565824]
[1739193768251,0.5753,2649.9,2649.8,0.00565824]
[1739193771365,4.84099144,2649.9,2649.8,0.00565824]
[1739193772366,0.5753,2649.9,2649.8,0.00565824]
[1739193773664,3.2078,2650.1,2649.8,0.00565824]
[1739193774662,0.5869,2650.0,2649.8,0.00565824]
[1739193775764,1.1741,2650.0,2649.8,0.00565824]
[1739193778466,1.92872,2650.0,2649.8,0.00565824]
[1739193778767,4.99857954,2649.9,2649.8,0.00565824]
[1739193780361,5.0612317,2649.9,2649.8,0.00565824]
[1739193783264,4.3066017,2649.9,2649.1,1.1758]
[1739193783467,3.2078,2649.4,2649.1,1.1758]
[1739193783676,1.1367,2649.3,2648.7,0.5899]
[1739193783878,3.2078,2649.1,2648.8,0.5839]
[1739193789472,0.00565824,2649.2,2649.0,5.22866672]
[1739193789675,0.00565824,2649.2,2649.1,0.553]
[1739193796474,0.00565824,2649.2,2648.8,0.5839]
[1739193796979,0.60245824,2649.2,2648.8,0.5839]
[1739193799677,3.81025824,2649.2,2648.8,0.5839]
[1739193799881,3.2078,2648.9,2648.8,0.5839]
[1739193800370,3.2078,2648.9,2648.7,0.00565824]
[1739193800371,3.96271,2648.9,2648.7,0.00565824]
[1739193800573,0.6129,2648.8,2648.7,0.00565824]
[1739193802382,7.26810331,2648.9,2648.7,0.00565824]
[1739193804285,3.2078,2648.9,2648.7,0.00565824]
[1739193804977,3.2078,2648.9,2648.7,2.02652496]
[1739193805281,3.2078,2648.9,2648.8,1.1697]
[1739193805578,3.2078,2648.9,2648.8,1.7232]
[1739193805980,3.21345824,2649.2,2648.8,42.5232]
[1739193806773,4.15837941,2649.1,2648.8,0.5535]
[1739193807083,3.2078,2648.9,2648.7,0.00565824]
[1739193807278,3.96273,2648.9,2648.7,0.00565824]
[1739193807478,5.48791941,2648.8,2648.7,0.00565824]
[1739193808175,5.48791941,2648.8,2648.3,0.5535]
[1739193808382,3.2078,2648.6,2648.3,0.5535]
[1739193808582,0.5655,2648.5,2648.3,0.5535]
[1739193808784,4.7113419,2648.5,2648.3,0.5535]
[1739193809488,0.5728,2648.4,2648.3,0.5535]
[1739193811078,4.7113419,2648.5,2648.3,0.5535]
[1739193813886,5.2724419,2648.5,2648.1,0.00565824]
[1739193814091,3.2078,2648.2,2648.1,0.00565824]
[1739193817986,7.34235369,2648.2,2648.1,0.00565824]
[1739193820392,3.2078,2648.2,2648.1,0.00565824]
[1739193821388,3.2078,2648.2,2648.1,0.56275824]
[1739193827101,3.2078,2648.2,2648.1,0.00565824]
[1739193835704,0.5617,2648.4,2648.1,0.00565824]
[1739193835705,3.2078,2648.3,2648.1,0.00565824]
[1739193837013,3.2078,2648.2,2648.1,0.00565824]
[1739193839000,4.3344,2648.5,2648.1,0.00565824]
[1739193839209,3.2078,2648.5,2648.1,0.00565824]
[1739193839407,3.2078,2648.2,2648.1,0.00565824]
[1739193839901,3.2078,2648.2,2648.1,40.80565824]
[1739193840098,3.2078,2648.2,2648.1,0.00565824]
[1739193840906,3.96291,2648.2,2648.1,0.00565824]
[1739193841409,3.2078,2648.2,2648.1,0.00565824]
[1739193842707,4.02560659,2648.2,2648.1,0.00565824]
[1739193843706,0.75522,2647.9,2647.3,41.9703]
[1739193843904,7.64520948,2648.2,2647.3,42.5775]
[1739193843905,3.2078,2647.5,2647.3,42.5775]
[1739193844300,3.2078,2647.5,2647.3,41.9667]
[1739193844706,0.605,2647.4,2647.3,0.6072]
[1739193845601,0.605,2647.4,2647.0,41.3945]
[1739193845905,3.2078,2647.2,2647.1,0.6053]
[1739193849000,0.5852,2647.3,2647.1,0.6053]
[1739193849198,3.2078,2647.5,2647.1,2.62616672]
[1739193850701,3.2078,2647.5,2647.2,40.8]
[1739193852415,3.7986,2647.5,2647.2,40.8]
[1739193857319,3.2078,2647.5,2647.2,40.8]
[1739193870324,3.2078,2647.5,2647.4,2.02086672]
[1739193870925,3.2078,2647.5,2647.4,42.82086672]
[1739193876227,3.2078,2647.5,2647.1,2.62616672]
[1739193876727,0.5831,2647.4,2647.1,43.42616672]
[1739193878526,0.5831,2647.4,2647.1,41.4053]
[1739193879730,0.5831,2647.4,2647.1,43.42616672]
[1739193881732,0.5981,2647.6,2647.1,44.18157672]
[1739193882043,0.00565824,2647.7,2647.6,0.75528]
[1739193882230,0.00565824,2647.7,2647.6,1.93778]
[1739193882431,0.00565824,2647.7,2647.6,1.7493]
[1739193882635,4.3625,2648.4,2647.6,42.5493]
[1739193882827,4.3625,2648.4,2647.9,2.02086672]
[1739193883034,4.3625,2648.4,2648.0,0.5668]
[1739193884541,3.8053,2648.4,2648.0,0.5668]
[1739193888341,3.8053,2648.4,2647.9,0.00565824]
[1739193888539,3.2078,2648.1,2647.9,0.00565824]
[1739193888740,0.5663,2648.0,2647.9,0.00565824]
[1739193900353,7.90041218,2648.0,2647.4,40.8]
[1739193900543,3.2078,2647.5,2647.4,40.8]
[1739193900744,3.2078,2647.5,2646.9,0.5774]
[1739193901048,1.7434,2647.4,2646.9,0.5774]
[1739193901247,1.7434,2647.4,2647.0,40.8]
[1739193902039,3.2078,2647.2,2647.0,40.8]
[1739193902650,3.2078,2647.2,2646.8,0.5912]
[1739193902850,3.2078,2646.9,2646.1,5.22866672]
[1739193903049,3.2078,2646.6,2646.2,40.8]
[1739193903255,0.5684,2646.5,2646.2,40.8]
[1739193904559,3.2078,2646.6,2646.2,40.8]
[1739193904753,3.2078,2646.6,2646.4,2.02086672]
[1739193904952,3.2078,2646.6,2646.2,40.8]
[1739193905347,3.2078,2646.6,2646.1,5.82986672]
[1739193905747,0.5566,2646.5,2646.1,46.62986672]
[1739193906054,3.2078,2646.6,2646.1,46.62986672]
[1739193906257,3.2078,2646.6,2646.4,2.02086672]
[1739193909052,0.57945824,2646.8,2646.5,1.1655]
[1739193909561,0.57945824,2646.8,2646.6,0.5565]
[1739193911257,3.2078,2646.7,2646.6,0.5565]
[1739193911453,7.2976901,2646.7,2645.8,2.02086672]
[1739193911658,3.2078,2646.1,2645.8,2.02086672]
[1739193911856,3.2078,2646.1,2645.9,40.8]
[1739193912959,3.2078,2646.4,2645.9,40.8]
[1739193913556,3.2078,2646.1,2645.9,40.8]
[1739193914953,5.22866672,2646.1,2645.9,40.8]
[1739193915157,4.92243925,2646.0,2645.3,0.5766]
[1739193915356,3.2078,2645.4,2644.9,0.5635]
[1739193915558,3.2078,2645.4,2645.2,40.8]
[1739193915764,3.2078,2645.4,2645.0,0.5766]
[1739193916261,3.2078,2645.4,2645.1,40.95152807]
[1739193917862,3.2078,2645.4,2645.1,40.8]
[1739193923063,3.2078,2645.8,2645.1,42.82086672]
[1739193923265,3.2078,2645.8,2645.4,2.02086672]
[1739193923455,3.2078,2645.8,2645.5,1.7138]
[1739193923856,3.2078,2645.8,2645.6,40.8]
[1739193928167,3.2078,2645.8,2645.2,3.2078]
[1739193928374,5.22866672,2645.8,2645.2,3.2078]
[1739193928563,3.2078,2645.5,2645.1,0.5817]
[1739193928769,0.5804,2645.4,2645.1,0.5817]
[1739193929064,3.2078,2645.2,2645.1,0.5817]
[1739193930874,3.2078,2645.2,2645.0,40.8]
[1739193931471,3.2078,2645.2,2644.7,3.2078]
[1739193931670,3.2078,2645.2,2644.3,3.2078]
[1739193931671,2.02086672,2644.9,2644.3,3.2078]
[1739193931965,1.2197,2645.3,2643.7,50.19017503]
[1739193931966,3.2078,2644.4,2643.7,50.19017503]
[1739193932272,3.2078,2644.4,2643.8,0.6085]
[1739193932675,3.2078,2644.4,2643.9,0.5959]
[1739193934675,0.5665,2644.3,2643.9,0.5959]
[1739193934878,3.2078,2644.7,2643.9,2.61676672]
[1739193935078,0.5665,2644.6,2643.9,2.61676672]
[1739193935569,3.2078,2644.4,2643.9,2.61676672]
[1739193935770,3.2078,2644.4,2643.9,0.5959]
[1739193936974,3.2078,2644.1,2643.8,0.6085]
[1739193937183,0.5665,2644.0,2643.7,40.8]
[1739193937477,3.2078,2643.8,2643.7,40.8]
[1739193938172,3.2078,2643.8,2643.5,0.6021]
[1739193938372,3.2078,2643.8,2643.3,1.684]
[1739193938567,2.02086672,2643.7,2643.2,0.6021]
[1739193939375,3.2078,2643.8,2643.2,0.6021]
[1739193940979,3.2078,2643.5,2643.2,0.6021]
[1739193941681,3.2078,2643.5,2643.1,0.5876]
[1739193941682,0.5651,2643.4,2643.1,0.5876]
[1739193941878,1.1378,2643.4,2643.1,0.5876]
[1739193942474,3.15866672,2643.4,2643.0,3.2078]
[1739193943570,1.1378,2643.4,2643.0,3.2078]
[1739193950488,3.2078,2643.8,2643.0,5.98525672]
[1739193950791,3.7948,2643.8,2643.1,0.5967]
[1739193951287,3.7948,2643.8,2643.3,3.2078]
[1739193951475,0.587,2644.1,2643.3,5.22866672]
[1739193951677,0.587,2644.1,2643.6,2.02086672]
[1739193951984,0.587,2644.1,2643.7,1.1849]
[1739193952773,3.7985,2644.5,2643.7,1.1849]
[1739193953382,3.7985,2644.5,2643.9,2.02086672]
[1739193954184,3.2078,2644.5,2643.9,5.22866672]
[1739193954390,3.70586672,2644.7,2643.9,11.22866672]
[1739193954592,3.2078,2644.8,2644.3,5.22866672]
[1739193954787,3.2078,2644.8,2644.4,1.1472]
[1739193956793,3.2078,2644.8,2644.4,41.9472]
[1739193958396,3.2078,2644.8,2644.4,1.1472]
[1739193958997,3.2078,2644.8,2644.6,2.02086672]
[1739193961097,3.2078,2644.8,2644.7,40.8]
[1739193964296,0.00566904,2644.9,2644.7,40.8]
[1739193964491,0.00566904,2644.9,2644.7,41.55608]
[1739193965004,0.00566904,2644.9,2644.8,0.75608]
[1739193965298,0.6054,2645.3,2644.8,0.75608]
[1739193965497,0.5747,2645.7,2645.2,2.02086672]
[1739193965796,0.5747,2645.7,2645.3,1.7416]
[1739193966995,3.21346904,2645.8,2645.3,1.7416]
[1739193969105,3.21346904,2645.8,2645.3,4.9494]
[1739193969508,3.21346904,2645.8,2645.3,4.3908]
[1739193971601,3.21346904,2645.8,2645.3,3.8179]
[1739193972607,3.2078,2645.5,2645.0,3.8077]
[1739193972796,0.6091,2645.4,2645.0,4.4154]
[1739193976812,0.6091,2645.4,2645.0,3.8155]
[1739193977011,0.5917,2645.3,2645.0,3.8155]
[1739193978510,0.6091,2645.4,2645.0,3.8155]
[1739193979008,0.6091,2645.4,2645.1,0.6011]
[1739193981910,3.21346904,2645.8,2645.3,3.2078]
[1739193982108,3.21346904,2645.8,2645.5,2.02086672]
[1739193982305,0.00566904,2645.8,2645.5,2.02086672]
[1739193982509,0.00566904,2645.8,2645.6,0.6086]
[1739193983208,3.2078,2646.3,2645.6,0.6086]
[1739193983209,3.2078,2646.3,2645.7,0.5528]
[1739193983410,0.5753,2646.3,2645.9,5.22866672]
[1739193983605,0.5753,2646.3,2646.0,40.8]
[1739193984307,0.5753,2646.3,2646.1,0.6086]
[1739193984499,0.00566904,2646.4,2646.1,0.6086]
[1739193984907,0.00566904,2646.4,2646.2,2.02086672]
[1739193987108,0.00566904,2646.4,2646.2,5.22866672]
[1739193987508,0.00566904,2646.4,2646.3,0.5944]
[1739193988113,4.3614,2646.9,2646.3,0.5944]
[1739193988114,3.2078,2646.9,2646.3,48.15004]
[1739193988309,3.2078,2646.9,2646.8,2.02086672]
[1739193989718,3.2078,2646.9,2646.5,2.02086672]
[1739193989912,0.5839,2646.8,2646.3,41.3944]
[1739193990114,0.5839,2646.8,2646.2,3.70386672]
[1739193990318,3.2078,2646.6,2646.2,3.70386672]
[1739193990819,0.6038,2646.5,2646.2,3.70386672]
[1739193991618,0.5839,2646.8,2646.3,0.6002]
[1739193993627,0.5839,2646.8,2646.5,2.02086672]
[1739193994019,0.5839,2646.8,2646.6,0.5634]
[1739193995921,0.5839,2646.8,2646.6,1.1165]
[1739193996127,3.2078,2647.0,2646.6,1.1165]
[1739193996922,0.57886904,2647.1,2646.8,2.02086672]
[1739193999133,0.00566904,2647.1,2646.8,5.22866672]
[1739193999333,0.00566904,2647.1,2646.9,0.5678]
[1739193999522,0.00566904,2647.1,2646.9,1.32327]
[1739193999926,0.6079,2647.4,2647.0,42.482]
[1739194000131,0.6079,2647.4,2647.2,2.02086672]
[1739194000625,3.2078,2647.6,2647.2,2.58586672]
[1739194000827,0.6079,2647.6,2647.2,2.58586672]
[1739194001634,0.6079,2647.6,2647.2,2.02086672]
[1739194006740,0.6079,2647.6,2647.5,5.22866672]
[1739194006942,0.00566904,2647.7,2647.5,5.22866672]
[1739194007137,0.00566904,2647.7,2647.6,1.7133]
[1739194009341,3.2078,2648.2,2647.6,1.7133]
[1739194009546,3.2078,2648.2,2648.0,2.02086672]
[1739194009752,3.2078,2648.2,2648.1,1.7631]
[1739194010240,3.2078,2648.5,2648.1,1.7631]
[1739194010443,1.741,2648.7,2648.1,1.7631]
[1739194010444,1.1591,2648.7,2648.3,2.02086672]
[1739194010638,0.00374337,2648.6,2648.3,2.02086672]
[1739194012340,0.00374337,2648.6,2648.5,3.2078]
[1739194012741,0.00374337,2648.6,2648.4,1.681]
[1739194013845,0.00374337,2648.6,2648.0,2.02086672]
[1739194013846,3.2078,2648.5,2648.0,2.02086672]
[1739194014142,3.2078,2648.5,2647.8,0.587]
[1739194015641,3.2078,2648.5,2648.0,2.02086672]
[1739194015843,0.60064337,2648.6,2648.2,3.2078]
[1739194016041,0.00374337,2648.6,2648.3,2.02086672]
[1739194016235,0.00374337,2648.6,2648.3,2.62726672]
[1739194016640,3.2078,2649.1,2648.5,3.2078]
[1739194016841,0.5642,2648.9,2648.6,2.02086672]
[1739194017641,3.2078,2649.1,2648.6,2.02086672]
[1739194017841,2.43565,2649.9,2648.5,3.7961]
[1739194017842,0.5642,2649.2,2648.9,2.02086672]
[1739194018048,0.5642,2649.2,2649.0,0.5971]
[1739194018445,3.2078,2649.4,2649.0,0.5971]
[1739194018842,3.2078,2649.4,2649.2,2.02086672]
[1739194019147,0.5764,2649.6,2649.2,2.02086672]
[1739194019649,3.2078,2649.7,2649.5,2.02086672]
[1739194020041,3.2078,2649.7,2649.6,40.8]
[1739194020247,3.2078,2649.7,2649.6,41.3971]
[1739194020441,3.2078,2650.0,2649.6,41.3971]
[1739194020642,3.2078,2650.0,2649.8,2.02086672]
[1739194021648,1.1911,2650.2,2649.8,2.02086672]
[1739194021945,3.2078,2650.8,2650.1,2.02086672]
[1739194022251,3.805,2650.8,2650.1,2.02086672]
[1739194022544,3.805,2650.8,2650.2,1.53895815]
[1739194022751,3.2078,2650.5,2650.2,1.53895815]
[1739194023237,3.2078,2650.5,2650.2,0.00566904]
[1739194023446,0.5994,2650.4,2650.2,0.00566904]
[1739194024442,3.805,2650.8,2650.3,0.58976433]
[1739194024952,3.805,2650.8,2650.4,0.58976433]
[1739194025151,3.2078,2650.5,2650.4,0.58976433]
[1739194025354,3.2078,2650.5,2650.2,0.00566904]
[1739194025746,0.6028,2650.4,2650.2,0.00566904]
[1739194026149,0.6028,2650.4,2650.3,0.58975863]
[1739194026650,3.2078,2650.5,2650.3,0.58975863]
[1739194026850,3.2078,2650.5,2650.3,1.18185863]
[1739194027654,3.2078,2650.5,2650.4,0.58975863]
[1739194030972,3.2078,2650.5,2650.2,0.00566904]
[1739194031173,0.5636,2650.4,2650.2,0.00566904]
[1739194034770,0.75451,2650.3,2650.2,0.00566904]
[1739194034970,0.5636,2650.4,2650.2,0.00566904]
[1739194037373,0.5636,2650.4,2650.3,0.58980796]
[1739194038071,1.31809,2650.4,2650.2,0.00566904]
[1739194038474,4.63469337,2650.4,2650.2,0.00566904]
[1739194038678,0.5636,2650.4,2650.2,0.00566904]
[1739194039580,1.3181,2650.4,2650.3,0.58982953]
[1739194039877,4.60480321,2650.4,2650.3,0.58982953]
[1739194040179,4.60480321,2650.4,2650.2,0.00566904]
[1739194040878,0.5636,2650.4,2650.2,0.00566904]
[1739194041471,0.5636,2650.4,2650.3,1.53337426]
[1739194042379,3.2078,2650.5,2650.3,1.53337426]
[1739194043276,3.2078,2650.5,2650.4,1.53337426]
[1739194043584,8.24302797,2650.5,2650.4,1.53337426]
[1739194043775,8.24302797,2650.5,2650.4,0.58975933]
[1739194043971,14.62052797,2650.5,2650.4,0.58975933]
[1739194044172,13.86606797,2650.5,2650.2,0.00566904]
[1739194044480,7.48856797,2650.5,2650.2,0.00566904]
[1739194044989,7.48856797,2650.5,2650.3,0.58986989]
[1739194045583,8.24302797,2650.5,2650.4,0.58986989]
[1739194047880,0.75451,2650.3,2650.2,0.00566904]
[1739194048085,8.77537672,2650.3,2650.2,0.00566904]
[1739194048387,12.73603166,2650.3,2650.2,0.94952184]
[1739194048582,13.17617878,2650.3,2650.2,0.94952184]
[1739194048885,12.42166878,2650.3,2649.6,0.57963226]
[1739194049080,3.2078,2649.7,2649.6,0.57963226]
[1739194049488,3.2078,2649.7,2649.5,41.37963226]
[1739194049881,3.2078,2649.7,2649.5,40.8]
[1739194050485,3.2078,2649.7,2649.4,0.5843]
[1739194050875,0.00566904,2649.9,2649.5,0.559]
[1739194051075,0.00566904,2649.9,2649.6,0.5997]
[1739194053781,0.00566904,2649.9,2649.8,2.02086672]
[1739194054289,3.2078,2650.4,2649.8,2.02086672]
[1739194054791,3.2078,2650.4,2649.9,40.8]
[1739194057291,3.2078,2650.4,2650.0,0.5579]
[1739194057791,3.2078,2650.4,2650.1,0.6116]
[1739194057993,3.2078,2650.4,2650.2,0.5568]
[1739194059190,3.2078,2650.4,2650.3,0.93403199]
[1739194059791,3.2078,2650.4,2650.3,0.58391337]
[1739194059989,3.2078,2650.7,2650.3,0.58391337]
[1739194060194,3.2078,2650.7,2650.4,2.02086672]
[1739194060389,3.2078,2650.7,2650.4,3.53873915]
[1739194060595,3.2078,2650.7,2650.5,0.5932]
[1739194061094,3.2078,2650.7,2650.6,40.8]
[1739194061295,3.2078,2650.7,2650.6,42.31787243]
[1739194061796,3.2078,2650.7,2650.6,42.90957243]
[1739194062095,3.8001,2651.0,2650.6,42.90957243]
[1739194062498,3.8001,2651.0,2650.6,41.3917]
[1739194062697,3.8001,2651.0,2650.7,1.51647099]
[1739194063190,3.8001,2651.0,2650.8,0.58325807]
[1739194063390,3.2078,2651.0,2650.8,0.58325807]
[1739194063586,3.2078,2651.0,2650.9,0.58325807]
[1739194064899,3.2078,2651.0,2650.7,40.8]
[1739194065290,3.2078,2651.0,2650.6,0.59736904]
[1739194065695,3.2078,2651.0,2650.7,0.58284968]
[1739194065886,5.05146044,2650.9,2650.7,0.58284968]
[1739194066089,5.05146044,2650.9,2650.6,0.00566904]
[1739194066090,7.66132716,2650.9,2650.6,0.00566904]
[1739194066292,6.90697716,2650.9,2650.6,0.00566904]
[1739194066797,4.29711044,2650.9,2650.6,0.00566904]
[1739194067197,4.29711044,2650.9,2650.6,0.59376904]
[1739194068297,3.2078,2650.7,2650.6,0.00566904]
[1739194068896,3.7702,2650.7,2650.6,0.00566904]
[1739194069499,7.95565868,2650.7,2650.6,0.00566904]
[1739194070098,8.71005868,2650.7,2650.6,0.00566904]
[1739194070398,0.75449,2650.5,2649.7,0.6021]
[1739194070595,3.2078,2650.1,2649.7,0.6021]
[1739194071097,3.2078,2650.1,2649.8,0.58313261]
[1739194071695,3.2078,2650.1,2649.7,1.17946904]
[1739194072695,3.2078,2650.1,2649.8,0.5830037]
[1739194072901,3.2078,2650.1,2649.7,1.17946904]
[1739194073596,3.7924,2650.1,2649.7,1.17946904]
[1739194074098,3.7924,2650.1,2649.8,0.58302912]
[1739194074895,3.7924,2650.1,2649.7,1.17946904]
[1739194075998,3.7924,2650.1,2649.8,0.58299783]
[1739194076700,3.7924,2650.1,2649.9,0.58299783]
[1739194076901,0.5846,2650.1,2649.9,0.58299783]
[1739194077106,0.5846,2650.1,2649.7,1.17946904]
[1739194077399,0.5846,2650.1,2649.8,0.58285169]
[1739194077799,0.5846,2650.1,2649.9,0.58285169]
[1739194078691,0.5846,2650.1,2649.7,1.17946904]
[1739194079093,0.5846,2650.1,2649.8,0.58300861]
[1739194079299,0.00566904,2650.2,2649.8,2.60387533]
[1739194079500,0.00566904,2650.2,2649.9,1.51599156]
[1739194079899,0.00566904,2650.2,2650.0,0.58300861]
[1739194080301,0.00566904,2650.2,2650.1,1.14870861]
[1739194081200,0.00566904,2650.2,2650.1,0.5657]
[1739194082205,0.00566904,2650.2,2650.1,1.14885255]
[1739194087910,0.00566904,2650.2,2650.1,0.5657]
[1739194089113,0.00566904,2650.2,2650.1,1.14880728]
[1739194095915,0.00566904,2650.2,2650.1,2.08295005]
[1739194102014,0.00566904,2650.2,2650.1,1.51725005]
[1739194102219,4.2066405,2650.2,2650.1,1.51725005]
[1739194102523,4.2066405,2650.2,2649.7,0.00566904]
[1739194102524,4.9611805,2650.2,2649.7,0.00566904]
[1739194102724,5.22866672,2649.8,2648.9,5.22866672]
[1739194102921,3.2078,2649.5,2649.0,0.5575]
[1739194103224,0.5881,2649.4,2649.1,40.8]
[1739194103422,0.5881,2649.4,2649.1,42.32039262]
[1739194103815,0.5881,2649.4,2649.2,1.52039262]
[1739194104219,0.5881,2649.4,2649.3,0.58476639]
[1739194105522,0.5881,2649.4,2649.0,0.56316904]
[1739194106026,0.5881,2649.4,2649.1,0.58435196]
[1739194106226,0.5881,2649.4,2649.2,0.58435196]
[1739194107027,0.5881,2649.4,2649.0,0.56316904]
[1739194107428,0.5881,2649.4,2649.1,0.58369896]
[1739194107931,0.5881,2649.4,2649.0,0.56316904]
[1739194109930,3.7959,2649.4,2649.0,0.56316904]
[1739194110123,2.914,2649.9,2649.2,2.02086672]
[1739194110326,0.5859,2649.8,2649.2,2.02086672]
[1739194110528,4.91254569,2649.8,2649.4,3.2078]
[1739194110724,0.5859,2649.8,2649.4,3.2078]
[1739194110927,0.5859,2649.8,2649.5,1.16495049]
[1739194111726,0.5859,2649.8,2649.6,0.58295049]
[1739194112433,4.03731325,2649.7,2649.1,1.177]
[1739194112635,4.03731325,2649.7,2649.2,0.5888]
[1739194113024,3.2078,2649.6,2649.2,0.5888]
[1739194113432,3.2078,2649.3,2649.2,0.5888]
[1739194113628,3.2078,2649.3,2649.0,0.00566904]
[1739194113827,0.5916,2649.2,2649.0,0.00566904]
[1739194114533,0.5916,2649.2,2649.1,0.58323171]
[1739194114939,0.5916,2649.2,2649.0,0.00566904]
[1739194115144,6.86892635,2649.2,2649.0,0.00566904]
[1739194115342,0.2176,2649.1,2648.2,3.2078]
[1739194115536,3.2078,2648.5,2647.7,2.02086672]
[1739194115739,3.2078,2648.5,2647.6,3.50950683]
[1739194115740,0.5916,2648.4,2648.1,40.8]
[1739194115944,5.22866672,2648.8,2648.2,0.6059]
[1739194116137,0.5916,2648.7,2648.2,0.6059]
[1739194116442,4.62901648,2648.7,2648.2,1.19496855]
[1739194116833,4.62901648,2648.7,2648.2,0.61156904]
[1739194117636,0.59726904,2648.7,2648.2,0.61156904]
[1739194120143,0.00566904,2648.7,2648.3,2.02086672]
[1739194120443,0.00566904,2648.7,2648.4,0.6027]
[1739194120641,0.00566904,2648.7,2648.6,2.02086672]
[1739194122239,0.00566904,2648.7,2648.3,2.02086672]
[1739194122447,0.00566904,2648.7,2648.4,0.58208313]
[1739194123148,0.00566904,2648.7,2648.3,2.02086672]
[1739194124147,4.25618878,2648.6,2648.2,3.81936904]
[1739194128451,4.25618878,2648.6,2648.3,2.02086672]
[1739194128649,0.00566904,2648.7,2648.5,3.2078]
[1739194129043,0.00566904,2648.7,2648.6,0.5858]
[1739194131749,0.00566904,2648.7,2648.6,1.16921065]
[1739194134345,0.00566904,2648.7,2648.6,3.19007737]
[1739194134753,0.00566904,2648.7,2648.6,4.12384422]
[1739194137147,0.00566904,2648.7,2648.6,2.1029775]
[1739194137649,0.00566904,2648.7,2648.6,1.16921065]
[1739194138053,0.57146904,2648.7,2648.6,1.16921065]
[1739194138251,0.57146904,2648.7,2648.4,0.5929]
[1739194138952,0.57146904,2648.7,2648.5,0.58390291]
[1739194139548,0.00566904,2648.7,2648.6,0.58390291]
[1739194139748,0.00566904,2648.7,2648.6,2.60476963]
[1739194140056,0.00566904,2648.7,2648.6,3.53883631]
[1739194140255,0.00566904,2648.7,2648.6,6.74663631]
[1739194140457,0.00566904,2648.7,2648.6,3.53883631]
[1739194143848,0.00566904,2648.7,2648.6,1.51796959]